fUST/lending_fUST_20241216
["ID","MTS","AMOUNT","RATE_DAILY","PERIOD"]
[345492123,1734293442561,-151.0,0.00027671,7]
[345492125,1734293442570,-174.288732,0.00027671,7]
[345492127,1734293442579,-592.47362317,0.00027671,7]
[345492129,1734293442588,-174.288732,0.00027671,7]
[345492131,1734293442598,-500.0,0.00027671,7]
[345492133,1734293442607,-500.0,0.00027671,7]
[345492135,1734293442615,-500.0,0.00027671,7]
[345492137,1734293442624,-500.0,0.00027671,7]
[345492138,1734293442633,-7936.95,0.00027671,2]
[345492139,1734293442643,-510.60166729,0.00027671,7]
[345492140,1734293442652,-326.86015767,0.00027671,7]
[345492141,1734293442661,-1184.39842899,0.00027743,2]
[345492142,1734293442671,-179.6,0.00027753,6]
[345492143,1734293442680,-420.0,0.00027774,2]
[345492144,1734293442690,-156.62,0.000278,7]
[345492145,1734293442700,-153.95,0.000278,7]
[345492146,1734293442710,-274.43,0.000278,7]
[345492147,1734293442719,-561.22251192,0.0002788,2]
[345492148,1734293442728,-4660.44767975,0.000279,5]
[345492213,1734293443260,-599.98798803,0.000279,5]
[345492215,1734293443272,-24784.79999,0.000279,5]
[345492227,1734293443371,-115904.36486764,0.000279,5]
[345492247,1734293443548,-684.74293365,0.000279,5]
[345492525,1734293446425,-554.15142226,0.00027397,7]
[345492526,1734293446436,-500.0,0.00027397,7]
[345492528,1734293446446,-27694.7853875,0.000279,5]
[345492530,1734293446456,-151.0,0.000279,7]
[345492532,1734293446465,-151.0,0.000279,7]
[345492533,1734293446474,-151.0,0.000279,7]
[345492535,1734293446483,-151.0,0.000279,7]
[345492537,1734293446493,-153.562705,0.000279,7]
[345492539,1734293446502,-191.172672,0.000279,7]
[345492540,1734293446511,-191.172672,0.000279,7]
[345492542,1734293446520,-325.519409,0.000279,7]
[345492544,1734293446529,-151.0,0.000279,7]
[345492545,1734293446539,-162.163767,0.000279,7]
[345492547,1734293446548,-151.0,0.000279,7]
[345492549,1734293446558,-250.282082,0.000279,7]
[345492551,1734293446567,-151.0,0.000279,7]
[345492553,1734293446577,-151.0,0.000279,7]
[345492554,1734293446586,-691.176439,0.000279,7]
[345492556,1734293446595,-691.176439,0.000279,7]
[345492558,1734293446605,-151.0,0.000279,7]
[345492560,1734293446616,-698.349883,0.000279,7]
[345492561,1734293446625,-698.349883,0.000279,7]
[345492563,1734293446634,-151.0,0.000279,7]
[345492565,1734293446643,-294.247303,0.000279,7]
[345492567,1734293446652,-294.247303,0.000279,7]
[345492569,1734293446661,-151.0,0.000279,7]
[345492570,1734293446670,-151.0,0.000279,7]
[345492572,1734293446679,-287.33982,0.000279,7]
[345492574,1734293446688,-217.623951,0.000279,7]
[345492576,1734293446697,-287.33982,0.000279,7]
[345492578,1734293446706,-151.0,0.000279,7]
[345492579,1734293446715,-151.0,0.000279,7]
[345492581,1734293446725,-174.288732,0.000279,7]
[345492583,1734293446735,-174.288732,0.000279,7]
[345492585,1734293446744,-500.0,0.00027945,7]
[345492586,1734293446753,-500.0,0.00027945,7]
[345492588,1734293446762,-249.79,0.00027945,7]
[345492590,1734293446771,-500.0,0.00027945,7]
[345492592,1734293446782,-500.0,0.00027945,7]
[345492593,1734293446791,-503.49635759,0.00027945,7]
[345492595,1734293446801,-500.0,0.00027945,7]
[345492597,1734293446810,-500.0,0.00027945,7]
[345492599,1734293446819,-500.0,0.00027945,7]
[345492601,1734293446828,-500.0,0.00027945,7]
[345492602,1734293446838,-264.04973248,0.00027945,7]
[345492604,1734293446847,-500.0,0.00027945,7]
[345492606,1734293446856,-502.51004243,0.00027945,7]
[345492607,1734293446865,-500.0,0.00027945,7]
[345492609,1734293446879,-503.15029681,0.00027945,7]
[345492611,1734293446888,-500.0,0.00027945,2]
[345492613,1734293446898,-500.0,0.00027945,7]
[345492615,1734293446907,-503.66890864,0.00027945,7]
[345492616,1734293446916,-215.36689718,0.00027945,7]
[345492618,1734293446925,-520.04270122,0.00027945,7]
[345492620,1734293446936,-169.73345231,0.00027945,7]
[345492622,1734293446945,-176.09799592,0.00027945,7]
[345492624,1734293446954,-500.0,0.00027945,7]
[345492625,1734293446966,-514.28672903,0.00027945,7]
[345492627,1734293446975,-500.0,0.00027945,7]
[345492629,1734293446986,-502.29482985,0.00027945,7]
[345492631,1734293446995,-500.0,0.00027945,7]
[345492633,1734293447004,-500.0,0.00027945,7]
[345492634,1734293447014,-500.0,0.00027945,7]
[345492636,1734293447023,-505.28983213,0.00027945,7]
[345492638,1734293447032,-500.0,0.00027945,7]
[345492640,1734293447042,-500.0,0.00027945,7]
[345492642,1734293447052,-500.0,0.00027945,7]
[345492643,1734293447061,-375.48,0.00027945,7]
[345492645,1734293447071,-500.0,0.00027945,7]
[345492647,1734293447081,-500.0,0.00027945,7]
[345492649,1734293447091,-500.0,0.00027945,7]
[345492651,1734293447100,-500.0,0.00027945,7]
[345492653,1734293447109,-500.0,0.00027945,7]
[345492654,1734293447119,-500.0,0.00027945,7]
[345492656,1734293447128,-535.41920389,0.00027945,7]
[345492658,1734293447137,-500.0,0.00027945,7]
[345492660,1734293447147,-500.0,0.00027945,7]
[345492661,1734293447156,-500.0,0.00027945,7]
[345492663,1734293447165,-500.0,0.00027945,7]
[345492665,1734293447174,-500.0,0.00027945,7]
[345492667,1734293447183,-500.0,0.00027945,7]
[345492669,1734293447193,-501.78374635,0.00027945,7]
[345492670,1734293447202,-500.0,0.00027945,7]
[345492672,1734293447211,-500.0,0.00027945,7]
[345492674,1734293447221,-500.0,0.00027945,7]
[345492676,1734293447231,-500.0,0.00027945,7]
[345492678,1734293447245,-500.0,0.00027945,7]
[345492680,1734293447255,-500.0,0.00027945,7]
[345492681,1734293447264,-500.0,0.00027945,7]
[345492683,1734293447274,-500.0,0.00027945,7]
[345492685,1734293447283,-500.0,0.00027945,7]
[345492687,1734293447292,-500.0,0.00027945,7]
[345492688,1734293447302,-500.0,0.00027945,7]
[345492690,1734293447311,-500.0,0.00027945,7]
[345492692,1734293447320,-500.0,0.00027945,7]
[345492694,1734293447330,-500.0,0.00027945,7]
[345492696,1734293447340,-172.34340212,0.00027945,7]
[345492697,1734293447349,-500.0,0.00027945,7]
[345492699,1734293447359,-500.0,0.00027945,7]
[345492701,1734293447369,-500.0,0.00027945,7]
[345492703,1734293447378,-500.0,0.00027945,7]
[345492704,1734293447387,-187.52420311,0.00027945,7]
[345492706,1734293447396,-500.0,0.00027945,7]
[345492708,1734293447406,-501.06,0.00027945,7]
[345492717,1734293447480,-500.0,0.00027945,7]
[345492719,1734293447491,-500.0,0.00027945,7]
[345492720,1734293447501,-500.0,0.00027945,7]
[345492721,1734293447510,-500.0,0.00027945,7]
[345492722,1734293447520,-500.0,0.00027945,7]
[345492723,1734293447529,-500.0,0.00027945,7]
[345492724,1734293447538,-500.0,0.00027945,7]
[345492725,1734293447547,-500.0,0.00027945,7]
[345492726,1734293447557,-500.0,0.00027945,7]
[345492727,1734293447566,-500.0,0.00027945,7]
[345492728,1734293447575,-500.0,0.00027945,7]
[345492729,1734293447584,-500.0,0.00027945,7]
[345492730,1734293447593,-500.0,0.00027945,7]
[345492731,1734293447602,-500.0,0.00027945,7]
[345492732,1734293447611,-500.0,0.00027945,7]
[345492733,1734293447620,-500.0,0.00027945,7]
[345492734,1734293447629,-500.0,0.00027945,7]
[345492735,1734293447639,-500.0,0.00027945,7]
[345492736,1734293447648,-500.0,0.00027945,7]
[345492737,1734293447657,-500.0,0.00027945,7]
[345492738,1734293447667,-500.0,0.00027945,7]
[345492740,1734293447677,-500.0,0.00027945,7]
[345492741,1734293447685,-500.0,0.00027945,7]
[345492743,1734293447695,-500.0,0.00027945,7]
[345492745,1734293447704,-500.0,0.00027945,7]
[345492747,1734293447713,-325.76,0.00027945,7]
[345492749,1734293447723,-500.0,0.00027945,7]
[345492751,1734293447733,-500.0,0.00027945,7]
[345492752,1734293447750,-500.0,0.00027945,7]
[345492754,1734293447759,-500.0,0.00027945,7]
[345492757,1734293447768,-500.0,0.00027945,7]
[345492759,1734293447777,-500.0,0.00027945,7]
[345492761,1734293447792,-500.0,0.00027945,7]
[345492763,1734293447800,-500.0,0.00027945,7]
[345492765,1734293447809,-602.96,0.00027945,7]
[345492767,1734293447819,-500.0,0.00027945,7]
[345492769,1734293447828,-500.0,0.00027945,7]
[345492771,1734293447837,-500.0,0.00027945,7]
[345492773,1734293447846,-500.0,0.00027945,7]
[345492775,1734293447855,-500.0,0.00027945,7]
[345492777,1734293447864,-500.0,0.00027945,7]
[345492779,1734293447877,-364.87107096,0.00027945,7]
[345492781,1734293447886,-500.0,0.00027945,7]
[345492783,1734293447896,-500.0,0.00027945,7]
[345492785,1734293447905,-500.0,0.00027945,7]
[345492787,1734293447916,-500.0,0.00027945,7]
[345492789,1734293447925,-500.0,0.00027945,7]
[345492791,1734293447934,-500.0,0.00027945,7]
[345492793,1734293447943,-504.1628666,0.00027945,7]
[345492795,1734293447953,-500.0,0.00027945,7]
[345492797,1734293447964,-500.0,0.00027945,7]
[345492799,1734293447973,-500.0,0.00027945,7]
[345492801,1734293447983,-500.0,0.00027945,7]
[345492803,1734293447993,-505.95785503,0.00027945,7]
[345492805,1734293448004,-572.0,0.00027945,7]
[345492806,1734293448013,-500.0,0.00027945,7]
[345492808,1734293448022,-500.0,0.00027945,7]
[345492810,1734293448031,-500.0,0.00027945,7]
[345492812,1734293448040,-6445.48,0.00027945,7]
[345492814,1734293448050,-500.0,0.00027945,7]
[345492816,1734293448059,-391.51528217,0.00027945,7]
[345492818,1734293448069,-500.0,0.00027945,7]
[345492820,1734293448078,-1440.06,0.00027945,7]
[345492822,1734293448088,-500.0,0.00027945,7]
[345492824,1734293448097,-500.0,0.00027945,7]
[345492826,1734293448107,-500.0,0.00027945,7]
[345492828,1734293448116,-505.0472758,0.00027945,7]
[345492830,1734293448126,-500.0,0.00027945,7]
[345492832,1734293448135,-500.0,0.00027945,7]
[345492834,1734293448144,-500.0,0.00027945,7]
[345492836,1734293448154,-500.0,0.00027945,7]
[345492839,1734293448164,-500.0,0.00027945,7]
[345492841,1734293448173,-500.0,0.00027945,7]
[345492843,1734293448183,-500.0,0.00027945,7]
[345492845,1734293448192,-500.0,0.00027945,7]
[345492847,1734293448202,-727.41,0.00027945,7]
[345492849,1734293448211,-500.0,0.00027945,7]
[345492851,1734293448221,-506.51078702,0.00027945,7]
[345492853,1734293448238,-500.0,0.00027945,7]
[345492855,1734293448247,-500.0,0.00027945,7]
[345492857,1734293448257,-500.0,0.00027945,7]
[345492859,1734293448269,-500.0,0.00027945,7]
[345492861,1734293448279,-500.0,0.00027945,7]
[345492863,1734293448288,-504.3868026,0.00027945,7]
[345492865,1734293448297,-500.0,0.00027945,7]
[345492867,1734293448307,-500.0,0.00027945,7]
[345492869,1734293448316,-500.0,0.00027945,7]
[345492871,1734293448326,-500.0,0.00027945,7]
[345492873,1734293448335,-500.0,0.00027945,7]
[345492875,1734293448344,-500.0,0.00027945,7]
[345492877,1734293448354,-500.0,0.00027945,7]
[345492879,1734293448364,-500.0,0.00027945,7]
[345492881,1734293448373,-500.0,0.00027945,7]
[345492883,1734293448382,-291.69369501,0.00027945,7]
[345492885,1734293448391,-502.66613123,0.00027945,7]
[345492887,1734293448401,-500.0,0.00027945,7]
[345492889,1734293448410,-500.0,0.00027945,7]
[345492891,1734293448419,-500.0,0.00027945,7]
[345492893,1734293448429,-500.0,0.00027945,7]
[345492895,1734293448439,-500.0,0.00027945,7]
[345492897,1734293448449,-500.0,0.00027945,7]
[345492899,1734293448459,-373.84901523,0.00027945,7]
[345492901,1734293448469,-500.0,0.00027945,7]
[345492903,1734293448479,-343.15,0.00027945,7]
[345492905,1734293448489,-500.0,0.00027945,7]
[345492907,1734293448498,-500.0,0.00027945,7]
[345492909,1734293448507,-500.0,0.00027945,7]
[345492911,1734293448517,-500.0,0.00027945,7]
[345492913,1734293448526,-500.0,0.00027945,7]
[345492915,1734293448535,-511.78,0.00027945,7]
[345492917,1734293448545,-500.0,0.00027945,7]
[345492919,1734293448554,-500.0,0.00027945,7]
[345492921,1734293448563,-500.0,0.00027945,7]
[345492924,1734293448573,-500.0,0.00027945,7]
[345492926,1734293448584,-500.0,0.00027945,7]
[345492928,1734293448593,-500.0,0.00027945,7]
[345492930,1734293448603,-500.0,0.00027945,7]
[345492932,1734293448612,-500.0,0.00027945,7]
[345492934,1734293448621,-500.0,0.00027945,7]
[345492936,1734293448630,-500.0,0.00027945,7]
[345492938,1734293448640,-500.0,0.00027945,7]
[345492940,1734293448649,-500.0,0.00027945,7]
[345492942,1734293448658,-500.0,0.00027945,7]
[345492944,1734293448668,-7936.95,0.00027945,2]
[345492946,1734293448677,-6624.73849341,0.00028,2]
[345494939,1734293521676,165.934678,0.00013973,2]
[345495008,1734294638771,-280.61125596,0.00021109,2]
[345495010,1734294638782,-300.0,0.00021208,2]
[345495012,1734294638793,-300.0,0.00021208,2]
[345495014,1734294638806,-256.97743974,0.00021209,2]
[345495469,1734294643630,-2033.66840157,0.00021209,2]
[345495797,1734294646720,-4263.02245801,0.00021209,2]
[345496092,1734294653890,160.531593,0.00013973,2]
[345496095,1734295420499,1148.355133,0.00021355,11]
[345496098,1734295608215,167.475324,0.00013973,2]
[345496103,1734295829439,172.840726,0.00020131,2]
[345496486,1734295837969,-167.475324,0.00020447,2]
[345496488,1734295837979,-250.0,0.0002054,2]
[345496490,1734295837989,-1704.00323048,0.00020947,2]
[345496492,1734295837998,-690.0000001,0.00020998,2]
[345496494,1734295838008,-179.8680009,0.00021108,2]
[345496496,1734295838017,-300.0,0.00021208,2]
[345496498,1734295838027,-300.0,0.00021208,2]
[345496500,1734295838037,-23413.50264166,0.00021209,2]
[345496678,1734295839851,-157066.06259126,0.00021209,2]
[345497658,1734296475593,173.457431,0.00013973,2]
[345497659,1734296738441,153.14872954,0.0002,2]
[345497660,1734296760185,19107.3526248,0.0001,2]
[345498039,1734297038123,-173.457431,0.00020447,2]
[345498041,1734297038135,-788.88549846,0.00021109,2]
[345498043,1734297038145,-1087.26316209,0.00021209,2]
[345498045,1734297038156,-2899.01330567,0.00021209,2]
[345498047,1734297038168,-423.4822554,0.00021459,2]
[345498049,1734297038179,-250.0,0.00021559,2]
[345498051,1734297038188,-1323.6080711,0.00021937,2]
[345498053,1734297038198,-423.4822554,0.00021951,2]
[345498055,1734297038207,-293.545395,0.00021974,2]
[345498057,1734297038217,-300.0,0.00022024,2]
[345498059,1734297038226,-24900.0,0.00022025,2]
[345498060,1734297038235,-423.4822554,0.00022442,2]
[345498061,1734297038244,-16537.7947621,0.0002246,2]
[345498062,1734297038255,-258.3368012,0.00022543,2]
[345498063,1734297038265,-383.035963,0.0002319,2]
[345498064,1734297038274,-201.08507184,0.00023407,2]
[345498065,1734297038286,-181.95089116,0.00023407,2]
[345498066,1734297038295,-172.404395,0.00023548,2]
[345498067,1734297038303,-617.810953,0.0002356,2]
[345498068,1734297038313,-276.1465297,0.00023585,2]
[345498069,1734297038322,-383.035963,0.00023624,2]
[345498070,1734297038331,-383.035963,0.0002384,2]
[345498071,1734297038341,-420.0,0.00023932,2]
[345498072,1734297038351,-383.035963,0.00024057,2]
[345498073,1734297038359,-383.035963,0.00024274,2]
[345498074,1734297038370,-383.035963,0.00024491,2]
[345498076,1734297038379,-383.035963,0.00024707,2]
[345498078,1734297038388,-383.035963,0.00024924,2]
[345498080,1734297038397,-486.75042099,0.00024951,2]
[345498082,1734297038406,-814.93466393,0.00025235,2]
[345498084,1734297038415,-300.0,0.00025499,2]
[345498085,1734297038424,-839.95698915,0.000255,2]
[345498088,1734297038436,-718.16086323,0.000255,2]
[345498090,1734297038446,-348.698217,0.00025753,2]
[345498092,1734297038455,-435.5367887,0.00026,2]
[345498094,1734297038464,-331.8319441,0.00026,2]
[345498096,1734297038473,-157.530822,0.00026,2]
[345498098,1734297038482,-587.0,0.00026006,2]
[345498100,1734297038491,-2432.315,0.00026099,2]
[345498102,1734297038500,-441.772,0.000266,2]
[345498104,1734297038509,-348.698217,0.00026706,2]
[345498106,1734297038518,-173.457431,0.00026921,2]
[345498108,1734297038527,-357.0,0.00027,2]
[345498110,1734297038537,-173.0,0.00027,2]
[345498112,1734297038546,-889.0,0.00027191,15]
[345498114,1734297038555,-500.0,0.00027397,7]
[345498116,1734297038564,-506.50975542,0.00027397,7]
[345498118,1734297038573,-500.0,0.00027397,7]
[345498120,1734297038582,-512.10233924,0.00027397,7]
[345498122,1734297038592,-500.0,0.00027397,7]
[345498124,1734297038601,-500.0,0.00027397,7]
[345498126,1734297038610,-500.0,0.00027397,7]
[345498128,1734297038619,-500.0,0.00027397,7]
[345498130,1734297038628,-319.46133443,0.00027397,2]
[345498132,1734297038637,-213.58819351,0.00027397,7]
[345498134,1734297038646,-500.0,0.00027397,7]
[345498136,1734297038655,-500.0,0.00027397,7]
[345498138,1734297038664,-500.0,0.00027397,7]
[345498140,1734297038673,-502.21417895,0.00027397,7]
[345498142,1734297038684,-500.0,0.00027397,7]
[345498144,1734297038693,-500.0,0.00027397,7]
[345498145,1734297038702,-399.66296277,0.00027397,7]
[345498147,1734297038711,-500.0,0.00027397,7]
[345498149,1734297038720,-500.0,0.00027397,7]
[345498151,1734297038730,-500.0,0.00027397,7]
[345498154,1734297038739,-500.0,0.00027397,7]
[345498156,1734297038748,-595.06963153,0.00027397,7]
[345498158,1734297038758,-500.0,0.00027397,7]
[345498160,1734297038767,-500.0,0.00027397,7]
[345498162,1734297038776,-500.0,0.00027397,7]
[345498164,1734297038785,-500.0,0.00027397,7]
[345498166,1734297038794,-505.47956177,0.00027397,7]
[345498168,1734297038803,-500.0,0.00027397,7]
[345498170,1734297038812,-500.0,0.00027397,7]
[345498172,1734297038822,-500.0,0.00027397,7]
[345498174,1734297038831,-500.0,0.00027397,7]
[345498176,1734297038840,-500.0,0.00027397,7]
[345498178,1734297038849,-500.0,0.00027397,7]
[345498180,1734297038858,-453.32,0.00027397,7]
[345498181,1734297038867,-500.0,0.00027397,7]
[345498183,1734297038876,-500.0,0.00027397,7]
[345498185,1734297038887,-500.0,0.00027397,7]
[345498187,1734297038896,-500.0,0.00027397,7]
[345498189,1734297038905,-500.0,0.00027397,7]
[345498191,1734297038915,-500.0,0.00027397,7]
[345498193,1734297038925,-500.0,0.00027397,7]
[345498195,1734297038935,-500.0,0.00027397,7]
[345498197,1734297038944,-500.0,0.00027397,7]
[345498199,1734297038953,-500.0,0.00027397,7]
[345498201,1734297038962,-301.00379241,0.00027397,7]
[345498203,1734297038971,-500.0,0.00027397,7]
[345498205,1734297038980,-500.0,0.00027397,7]
[345498207,1734297038989,-271.30705324,0.00027397,7]
[345498210,1734297039006,-152.2969084,0.00027397,7]
[345498212,1734297039015,-500.0,0.00027397,7]
[345498214,1734297039024,-500.0,0.00027397,7]
[345498216,1734297039034,-423.91377034,0.00027397,7]
[345498218,1734297039045,-76.08622966,0.00027397,7]
[345498220,1734297039055,-500.0,0.00027397,7]
[345498222,1734297039064,-500.0,0.00027397,7]
[345498224,1734297039073,-500.0,0.00027397,7]
[345498226,1734297039083,-500.0,0.00027397,7]
[345498228,1734297039095,-500.0,0.00027397,7]
[345498230,1734297039104,-500.0,0.00027397,7]
[345498232,1734297039113,-600.55870853,0.00027397,7]
[345498234,1734297039122,-500.0,0.00027397,7]
[345498236,1734297039131,-500.0,0.00027397,7]
[345498238,1734297039142,-500.0,0.00027397,7]
[345498240,1734297039152,-196.4,0.00027397,7]
[345498242,1734297039161,-180.57965802,0.00027397,7]
[345498244,1734297039173,-500.0,0.00027397,7]
[345498246,1734297039186,-500.0,0.00027397,7]
[345498248,1734297039195,-533.3,0.00027397,7]
[345498250,1734297039205,-500.0,0.00027397,7]
[345498252,1734297039215,-500.0,0.00027397,7]
[345498254,1734297039224,-500.0,0.00027397,7]
[345498256,1734297039233,-500.0,0.00027397,7]
[345498258,1734297039242,-500.0,0.00027397,7]
[345498260,1734297039251,-500.0,0.00027397,7]
[345498262,1734297039260,-184.66,0.00027397,7]
[345498264,1734297039270,-500.0,0.00027397,7]
[345498266,1734297039278,-500.0,0.00027397,7]
[345498268,1734297039287,-500.0,0.00027397,7]
[345498270,1734297039297,-513.21,0.00027397,7]
[345498272,1734297039307,-500.0,0.00027397,7]
[345498274,1734297039316,-500.0,0.00027397,7]
[345498276,1734297039325,-500.0,0.00027397,7]
[345498278,1734297039334,-502.98698104,0.00027397,7]
[345498280,1734297039343,-500.0,0.00027397,7]
[345498283,1734297039353,-500.0,0.00027397,7]
[345498285,1734297039362,-251.98,0.00027397,7]
[345498287,1734297039372,-500.0,0.00027397,7]
[345498290,1734297039382,-500.0,0.00027397,7]
[345498293,1734297039391,-1260.06,0.00027397,7]
[345498296,1734297039402,-500.0,0.00027397,7]
[345498298,1734297039411,-500.0,0.00027397,7]
[345498300,1734297039420,-417.63914121,0.00027397,7]
[345498302,1734297039433,-82.36085879,0.00027397,7]
[345498304,1734297039442,-500.0,0.00027397,7]
[345498306,1734297039451,-500.0,0.00027397,7]
[345498308,1734297039462,-500.0,0.00027397,7]
[345498310,1734297039471,-500.0,0.00027397,7]
[345498312,1734297039481,-500.0,0.00027397,7]
[345498314,1734297039490,-275.22948696,0.00027397,7]
[345498389,1734297042975,-235.35438673,0.00027397,7]
[345498390,1734297042985,-16.61675377,0.00027397,7]
[345498400,1734297750208,167.011664,0.00013973,2]
[345498501,1734298232783,-167.011664,0.00020447,2]
[345498503,1734298232795,-165.80059883,0.00022,2]
[345498506,1734298232807,-401.09086908,0.00022,2]
[345498508,1734298232816,-590.95892642,0.00025,7]
[345498510,1734298232829,-1279.68758788,0.00025,7]
[345498512,1734298232839,-33.45716342,0.00025499,2]
[345498810,1734298238486,-266.54283658,0.00025499,2]
[345498811,1734298238497,-300.0,0.00025596,2]
[345498812,1734298238507,-24900.0,0.00025597,2]
[345498813,1734298238523,-354.5920137,0.00025717,2]
[345498814,1734298238543,-330.398035,0.00025767,2]
[345498815,1734298238670,-179.86800089,0.000258,2]
[345498816,1734298238679,-464.665743,0.00025803,2]
[345498817,1734298238689,-589.91224973,0.0002583,2]
[345498818,1734298238698,-788.88549846,0.0002593,2]
[345498819,1734298238707,-450.567,0.0002603,2]
[345498820,1734298238717,-1225.0526919,0.00026171,2]
[345498821,1734298238726,-330.398035,0.00026721,2]
[345498822,1734298238735,-167.011664,0.00026921,2]
[345498823,1734298238744,-363.0,0.00027,2]
[345498824,1734298238754,-156.0,0.00027,2]
[345498825,1734298238767,-854.1416112,0.00027123,4]
[345498826,1734298238776,-527.61224722,0.00027228,2]
[345498827,1734298238787,-571.99109465,0.00027373,2]
[345498828,1734298238796,-320.52146516,0.00027396,2]
[345498829,1734298238805,-22987.06808977,0.00027397,2]
[345498830,1734298238815,-136371.77172474,0.00027397,2]
[345498831,1734298238827,-4518.28792653,0.00027397,2]
[345498832,1734298238836,-500.0,0.00027397,7]
[345498833,1734298238845,-500.0,0.00027397,7]
[345498834,1734298238854,-500.0,0.00027397,7]
[345498835,1734298238866,-500.0,0.00027397,7]
[345498836,1734298238875,-500.0,0.00027397,7]
[345498837,1734298238885,-500.0,0.00027397,7]
[345498838,1734298238894,-181.71207347,0.00027397,7]
[345498839,1734298238905,-318.28792653,0.00027397,7]
[345498840,1734298238915,-500.0,0.00027397,7]
[345498841,1734298238924,-500.0,0.00027397,7]
[345498842,1734298238933,-492.19957759,0.00027397,7]
[345498843,1734298238942,-500.0,0.00027397,7]
[345498844,1734298238952,-500.0,0.00027397,7]
[345498845,1734298238962,-500.0,0.00027397,7]
[345498846,1734298238971,-617.22882386,0.00027397,7]
[345498847,1734298238980,-346.2836727,0.00027397,7]
[345498848,1734298238991,-153.7163273,0.00027397,7]
[345498849,1734298239000,-266.11362495,0.00027397,7]
[345498850,1734298239010,-500.0,0.00027397,7]
[345498851,1734298239035,-500.0,0.00027397,7]
[345498852,1734298239045,-500.0,0.00027397,7]
[345498853,1734298239054,-500.0,0.00027397,7]
[345498854,1734298239063,-500.0,0.00027397,7]
[345498855,1734298239073,-500.0,0.00027397,7]
[345498856,1734298239082,-500.0,0.00027397,7]
[345498857,1734298239091,-469.26731939,0.00027397,7]
[345498858,1734298239100,-240.39461762,0.00027397,7]
[345498896,1734298243183,-872.31736792,0.0002583,2]
[345498897,1734298243194,-203.74762424,0.00027397,7]
[345498898,1734298243204,-516.14751373,0.00027397,7]
[345498899,1734298243214,-500.0,0.00027397,7]
[345498900,1734298243223,-533.71,0.00027397,7]
[345498901,1734298243233,-500.0,0.00027397,7]
[345498903,1734298243242,-500.0,0.00027397,7]
[345498905,1734298243252,-359.373219,0.00027397,7]
[345498906,1734298243261,-500.0,0.00027397,7]
[345498907,1734298243271,-500.0,0.00027397,7]
[345498908,1734298243281,-500.0,0.00027397,7]
[345498909,1734298243290,-500.0,0.00027397,7]
[345498910,1734298243304,-500.0,0.00027397,7]
[345498912,1734298243314,-474.81702872,0.00027397,7]
[345498914,1734298243325,-500.0,0.00027397,7]
[345498915,1734298243335,-500.0,0.00027397,7]
[345498916,1734298243344,-500.0,0.00027397,7]
[345498917,1734298243354,-500.0,0.00027397,7]
[345498919,1734298243364,-500.0,0.00027397,7]
[345498920,1734298243374,-500.0,0.00027397,7]
[345498921,1734298243384,-500.0,0.00027397,7]
[345498922,1734298243394,-151.0,0.00027397,7]
[345498923,1734298243405,-500.0,0.00027397,7]